bitfinex/quotes_SOLUSD_20260208
["timestamp","ask_amount","ask_price","bid_price","bid_amount"]
[1770538682280,2.07661051,87.169,87.14,11.67570894]
[1770538682462,57.67713586,87.247,87.13,0.2]
[1770538682463,2.07661051,87.159,87.133,0.93035847]
[1770538682667,2.07661051,87.139,87.108,11.47996941]
[1770538683081,2.07661051,87.139,87.112,11.47942607]
[1770538683300,2.07661051,87.139,87.116,11.47885563]
[1770538683590,2.07661051,87.139,87.11,15.73264765]
[1770538683886,2.07661051,87.137,87.11,0.2]
[1770538684589,6.3969491,87.137,87.112,2.02043514]
[1770538684791,2.07661051,87.136,87.112,2.02043514]
[1770538685087,6.3969491,87.136,87.112,2.02043514]
[1770538685291,7.24025756,87.145,87.11,0.2]
[1770538685292,2.07661051,87.128,87.11,0.2]
[1770538685591,6.3969491,87.129,87.11,2.22043514]
[1770538685782,8.33731479,87.129,87.11,2.22043514]
[1770538686098,1.94036569,87.128,87.11,2.22043514]
[1770538686477,1.94036569,87.126,87.11,0.2]
[1770538686781,1.94036569,87.124,87.11,0.2]
[1770538687485,1.94036569,87.124,87.1,0.2]
[1770538687486,1.94036569,87.118,87.1,0.2]
[1770538687689,1.94036569,87.118,87.08,0.47904698]
[1770538687872,6.3969491,87.089,87.062,2.12386595]
[1770538688594,6.3969491,87.079,87.04,0.1]
[1770538688782,6.3969491,87.069,87.04,11.58893743]
[1770538689091,6.3969491,87.068,87.041,2.12386595]
[1770538689268,6.3969491,87.068,87.051,2.12386595]
[1770538689691,6.3969491,87.068,87.052,11.48738684]
[1770538689985,6.3969491,87.068,87.044,2.12386595]
[1770538690282,6.3969491,87.067,87.044,2.12386595]
[1770538690990,0.72100001,87.079,87.051,2.12386595]
[1770538691184,7.11794911,87.079,87.051,2.12386595]
[1770538691376,0.72100001,87.078,87.051,2.12386595]
[1770538691887,6.3969491,87.077,87.051,2.12386595]
[1770538692185,0.72100001,87.076,87.051,2.12386595]
[1770538692378,7.11794911,87.076,87.053,2.12386595]
[1770538693588,6.3969491,87.075,87.053,2.12386595]
[1770538693793,7.11794911,87.075,87.053,2.12386595]
[1770538694090,0.72100001,87.074,87.047,11.48804358]
[1770538694275,6.3969491,87.069,87.047,11.48804358]
[1770538694470,0.72100001,87.068,87.047,11.48804358]
[1770538694692,7.11794911,87.068,87.047,11.48804358]
[1770538694904,0.72100001,87.067,87.047,11.48804358]
[1770538695083,0.72100001,87.067,87.044,2.12386595]
[1770538695697,7.11794911,87.067,87.044,2.12386595]
[1770538695902,4.05303,87.07,87.044,2.12386595]
[1770538695903,6.3969491,87.065,87.044,2.12386595]
[1770538697379,13.61838906,87.065,87.044,2.12386595]
[1770538697580,0.72100001,87.064,87.044,2.12386595]
[1770538698303,0.72100001,87.064,87.041,2.12386595]
[1770538698988,6.3969491,87.062,87.04,0.1]
[1770538699183,0.03513598,87.061,87.04,0.1]
[1770538699808,0.25613599,87.064,87.04,2.22386595]
[1770538699979,0.72100001,87.061,87.04,2.22386595]
[1770538701406,6.3969491,87.059,87.04,2.24143394]
[1770538701577,7.13394908,87.058,87.04,2.24143394]
[1770538701994,0.72100001,87.057,87.04,2.24143394]
[1770538702598,7.11794911,87.057,87.04,2.24143394]
[1770538702989,0.72100001,87.056,87.04,2.24143394]
[1770538703504,4.05303,87.07,87.04,2.24143394]
[1770538703505,7.21071444,87.08,87.051,2.14143394]
[1770538705301,7.21071444,87.08,87.053,2.06848026]
[1770538708303,7.21071444,87.08,87.055,2.06848026]
[1770538708610,0.72100001,87.105,87.071,2.06848026]
[1770538709181,0.72100001,87.105,87.081,2.06848026]
[1770538709386,4.83190839,87.13,87.092,2.06848026]
[1770538709602,0.72100001,87.118,87.092,2.06848026]
[1770538709995,1.50732137,87.118,87.092,2.06848026]
[1770538710195,0.78632136,87.117,87.092,2.06848026]
[1770538710503,0.78632136,87.117,87.093,11.48197903]
[1770538710694,0.78632136,87.117,87.094,2.06848026]
[1770538711289,4.05303,87.14,87.102,2.06848026]
[1770538711488,0.79367884,87.138,87.102,2.06848026]
[1770538712398,0.80095181,87.137,87.104,2.06848026]
[1770538713189,7.22183694,87.138,87.111,2.06848026]
[1770538714707,7.22183694,87.138,87.113,2.06848026]
[1770538716005,4.05303,87.13,87.106,2.17968608]
[1770538716215,4.05303,87.12,87.095,2.17968608]
[1770538716911,0.83608262,87.125,87.097,2.17968608]
[1770538717311,0.84286854,87.135,87.101,2.17968608]
[1770538718593,0.84286854,87.135,87.103,2.17968608]
[1770538718800,7.12538591,87.135,87.103,2.17968608]
[1770538719292,0.85620745,87.134,87.103,2.17968608]
[1770538720012,6.28251737,87.133,87.103,2.17968608]
[1770538720219,6.28251737,87.109,87.091,2.17968608]
[1770538721202,4.05303,87.12,87.093,2.17968608]
[1770538721203,6.28251737,87.115,87.093,2.17968608]
[1770538722220,6.28251737,87.126,87.093,2.17968608]
[1770538722417,0.87564675,87.125,87.1,4.05303]
[1770538723023,0.87564675,87.125,87.095,2.17968608]
[1770538723217,0.87564675,87.125,87.1,4.05303]
[1770538723818,6.28251737,87.126,87.101,2.17968608]
[1770538724017,6.28251737,87.126,87.111,2.17968608]
[1770538724930,6.28251737,87.126,87.101,13.66061052]
[1770538725104,0.89442388,87.125,87.101,2.17968608]
[1770538725300,6.28251737,87.124,87.101,2.17968608]
[1770538726223,0.9005397,87.118,87.084,2.17968608]
[1770538726519,0.9005397,87.116,87.087,2.17968608]
[1770538726905,0.9005397,87.116,87.09,13.66204324]
[1770538727404,0.9005397,87.116,87.091,2.17968608]
[1770538728024,6.28251737,87.114,87.091,2.17968608]
[1770538728322,0.91256139,87.113,87.091,2.17968608]
[1770538728910,0.91846888,87.098,87.071,2.17968608]
[1770538729113,6.28251737,87.096,87.071,2.17968608]
[1770538729309,6.28251737,87.096,87.073,2.17968608]
[1770538730229,0.91846888,87.098,87.073,2.17968608]
[1770538730409,6.28251737,87.097,87.073,2.17968608]
[1770538731232,0.91846888,87.098,87.074,11.48448446]
[1770538731526,0.91846888,87.098,87.075,2.17968608]
[1770538732231,7.20098625,87.098,87.075,2.17968608]
[1770538732530,0.93578733,87.097,87.068,2.17968608]
[1770538733210,6.28251737,87.097,87.071,2.17968608]
[1770538733416,6.28251737,87.097,87.081,2.17968608]
[1770538734336,0.72100001,87.102,87.081,2.17968608]
[1770538734520,0.94700397,87.099,87.069,2.17968608]
[1770538734718,7.22952134,87.097,87.069,2.17968608]
[1770538734913,7.22952134,87.097,87.071,2.17968608]
[1770538735742,6.28251737,87.096,87.071,2.17968608]
[1770538736118,7.24048179,87.096,87.071,2.17968608]
[1770538736419,0.95796442,87.095,87.071,2.17968608]
[1770538736616,0.95796442,87.095,87.072,11.48474825]
[1770538737040,0.95796442,87.095,87.072,13.66443433]
[1770538737329,0.95796442,87.095,87.072,2.17968608]
[1770538738342,13.50150707,87.098,87.064,2.17968608]
[1770538738343,4.05303,87.09,87.064,2.17968608]
[1770538738538,0.96867453,87.078,87.041,2.17968608]
[1770538738719,7.2511919,87.077,87.043,2.17968608]
[1770538739424,6.28251737,87.077,87.043,2.17968608]
[1770538739625,6.28251737,87.075,87.045,2.17968608]
[1770538740041,6.28251737,87.075,87.051,2.17968608]
[1770538740615,6.28251737,87.082,87.051,2.17968608]
[1770538740828,6.28251737,87.082,87.061,2.17968608]
[1770538741941,6.28251737,87.086,87.063,2.17968608]
[1770538742123,0.98936649,87.069,87.04,0.1]
[1770538742322,0.98936649,87.058,87.04,0.1]
[1770538742534,0.88936649,87.048,87.019,2.17968608]
[1770538742726,6.28251737,87.039,87.019,2.17968608]
[1770538742930,0.88936649,87.048,87.019,2.17968608]
[1770538742931,6.28251737,87.038,87.019,2.17968608]
[1770538744144,6.28251737,87.046,87.019,2.17968608]
[1770538744340,6.28251737,87.046,87.021,2.17968608]
[1770538744749,6.28251737,87.046,87.031,2.17968608]
[1770538744924,6.28251737,87.053,87.031,2.17968608]
[1770538746139,6.28251737,87.049,87.024,2.07321562]
[1770538746352,7.19643977,87.049,87.024,2.07321562]
[1770538748144,6.28251737,87.047,87.024,2.07321562]
[1770538748326,0.72100001,87.056,87.024,2.07321562]
[1770538748327,6.28251737,87.046,87.024,2.07321562]
[1770538749244,6.28251737,87.045,87.025,2.07321562]
[1770538749540,6.28251737,87.045,87.026,11.49081883]
[1770538749746,6.28251737,87.045,87.027,2.07321562]
[1770538750327,6.28251737,87.044,87.027,2.07321562]
[1770538751548,6.28251737,87.052,87.027,2.07321562]
[1770538752629,6.28251737,87.049,87.027,2.07321562]
[1770538752828,6.28251737,87.049,86.968,57.19077425]
[1770538752829,0.94150067,87.038,87.004,2.07321562]
[1770538753744,6.28251737,87.038,87.011,2.11106592]
[1770538755145,6.28251737,87.045,87.013,2.11106592]
[1770538755649,6.28251737,87.039,87.013,2.11106592]
[1770538755944,0.96305406,87.038,87.013,2.11106592]
[1770538756144,6.28251737,87.028,87.013,2.11106592]
[1770538757349,0.96305406,87.038,87.013,2.11106592]
[1770538758633,6.28251737,87.038,87.015,2.11106592]
[1770538758834,11.48720612,87.054,87.021,2.11106592]
[1770538759936,6.28251737,87.053,87.021,2.11106592]
[1770538760743,0.97133281,87.057,87.0,0.1]
[1770538760744,6.28251737,87.052,87.031,2.11106592]
[1770538761952,0.98732736,87.048,87.023,2.11106592]
[1770538763557,6.28251737,87.046,87.023,2.11106592]
[1770538766063,6.28251737,87.045,87.023,2.11106592]
[1770538767163,6.28251737,87.044,87.025,2.11106592]
[1770538768266,6.28251737,87.049,87.025,2.11106592]
[1770538770869,7.29969959,87.047,87.025,2.11106592]
[1770538771164,11.48791471,87.048,87.004,2.11106592]
[1770538771165,1.02072379,87.038,87.004,2.11106592]
[1770538771357,10.8772709,87.04,87.004,2.11106592]
[1770538771358,7.30324116,87.029,87.004,2.11106592]
[1770538772248,6.28251737,87.027,87.004,2.11106592]
[1770538772660,6.28251737,87.019,86.996,2.11106592]
[1770538774468,18.80545423,87.019,86.996,2.11106592]
[1770538775271,6.28251737,87.018,87.0,2.21106592]
[1770538776144,6.28251737,87.017,87.0,2.21106592]
[1770538777248,6.28251737,87.022,87.0,2.21106592]
[1770538777558,6.28251737,87.02,87.0,2.21106592]
[1770538778262,7.22936326,87.029,87.0,2.21106592]
[1770538778263,6.28251737,87.019,87.001,2.28821973]
[1770538779244,6.28251737,87.024,87.001,2.28821973]
[1770538779566,1.05082234,87.023,87.001,2.28821973]
[1770538779760,1.05082234,87.023,87.0,0.1]
[1770538780869,6.28251737,87.021,87.0,0.1]
[1770538781071,7.33961382,87.021,87.0,0.1]
[1770538781449,1.05709645,87.02,87.0,0.1]
[1770538781866,6.28251737,87.021,87.001,2.28821973]
[1770538782870,7.22936326,87.029,87.001,2.28821973]
[1770538783069,7.22936326,87.029,87.003,2.28821973]
[1770538784068,6.28251737,87.028,87.003,2.28821973]
[1770538784465,6.28251737,87.028,87.011,2.28821973]
[1770538785570,6.28251737,87.028,87.013,2.28821973]
[1770538786761,2.50125542,87.029,87.02,4.06151139]
[1770538787065,6.28251737,87.045,87.023,1.30373593]
[1770538787952,6.28251737,87.044,87.023,1.30373593]
[1770538788672,8.50454072,87.044,87.023,1.30373593]
[1770538788972,6.28251737,87.043,87.023,1.30373593]
[1770538789466,2.22202335,87.042,87.0,0.1]
[1770538789674,2.22202335,87.039,87.0,4.16151139]
[1770538790455,2.22202335,87.039,87.001,1.3151772]
[1770538790961,2.22202335,87.039,87.01,4.06151139]
[1770538791869,6.28251737,87.039,87.02,4.06151139]
[1770538792056,6.28251737,87.039,87.02,5.37493643]
[1770538793076,6.28251737,87.038,87.02,5.37493643]
[1770538794086,2.22202335,87.044,87.02,5.37493643]
[1770538795786,2.22202335,87.044,87.021,1.30014247]
[1770538797179,5.58428712,87.046,87.031,1.29153975]
[1770538797772,5.58428712,87.046,87.033,1.29153975]
[1770538798484,2.22202335,87.068,87.04,4.06151139]
[1770538799479,2.35880312,87.074,87.05,4.06151139]
[1770538799787,11.4839499,87.079,87.05,4.06151139]
[1770538799788,2.35880312,87.078,87.05,4.06151139]
[1770538799967,2.35880312,87.078,87.041,11.48883859]
[1770538800292,2.35880312,87.084,87.06,4.06151139]
[1770538800762,7.23077016,87.089,87.07,4.06151139]
[1770538800968,7.23077016,87.089,87.08,4.06151139]
[1770538801188,2.35880312,87.105,87.08,4.06151139]
[1770538801487,2.35880312,87.105,87.09,4.06151139]
[1770538801678,2.35880312,87.124,87.081,11.48356128]
[1770538801865,2.35880312,87.119,87.08,4.06151139]
[1770538802266,2.35880312,87.119,87.1,4.06151139]
[1770538802472,2.35880312,87.119,87.09,4.06151139]
[1770538802668,2.35880312,87.119,87.1,4.06151139]
[1770538803265,7.2287724,87.125,87.07,28.71245674]
[1770538803266,2.35880312,87.117,87.09,4.06151139]
[1770538803584,2.35880312,87.117,87.1,4.06151139]
[1770538804073,7.2287724,87.125,87.1,4.06151139]
[1770538804385,7.2287724,87.125,87.11,4.06151139]
[1770538805277,0.2,87.14,87.111,11.47960647]
[1770538805482,2.55880312,87.14,87.12,4.05147333]
[1770538805677,13.8347209,87.139,87.12,4.05147333]
[1770538805870,2.35880312,87.138,87.11,4.05147333]
[1770538806486,0.2,87.14,87.13,4.05147333]
[1770538806868,2.35880312,87.147,87.13,4.05147333]
[1770538807062,2.35880312,87.147,87.12,4.05147333]
[1770538807684,2.35880312,87.145,87.11,4.05147333]
[1770538807886,2.35880312,87.139,87.1,4.05147333]
[1770538808882,2.35880312,87.139,87.067,5.13032502]
[1770538808883,2.35880312,87.139,87.086,11.48290124]
[1770538809187,2.24947452,87.109,87.074,11.48437035]
[1770538809682,2.24947452,87.109,87.041,61.2]
[1770538809683,2.24947452,87.099,87.071,2.29704886]
[1770538809889,2.24947452,87.099,87.067,11.48534463]
[1770538810088,2.24947452,87.099,87.07,4.05147333]
[1770538810884,2.24947452,87.112,87.08,4.05147333]
[1770538811382,2.24947452,87.112,87.07,13.16309244]
[1770538811383,2.24947452,87.109,87.07,13.16309244]
[1770538811585,2.24947452,87.107,87.071,2.29704886]
[1770538811773,2.24947452,87.099,87.071,2.29704886]
[1770538811976,2.24947452,87.099,87.065,11.48563461]
[1770538812381,2.24947452,87.099,87.065,13.78268347]
[1770538813070,2.24947452,87.099,87.06,22.35237079]
[1770538813268,7.21872412,87.107,87.081,2.19454805]
[1770538813467,5.58428712,87.106,87.081,2.19454805]
[1770538813675,2.21823022,87.105,87.081,2.19454805]
[1770538814281,2.21823022,87.105,87.082,2.19454805]
[1770538817987,5.58428712,87.106,87.082,2.19454805]
[1770538818195,2.21823022,87.105,87.082,2.19454805]
[1770538818778,5.58428712,87.106,87.091,2.19454805]
[1770538818975,5.58428712,87.106,87.1,10.86604358]
[1770538819176,5.58428712,87.106,87.093,2.19454805]
[1770538819381,5.58428712,87.106,87.1,10.86604358]
[1770538819583,2.21823022,87.119,87.1,10.86604358]
[1770538821191,2.21823022,87.129,87.101,11.48092444]
[1770538821391,2.21823022,87.128,87.101,13.67547249]
[1770538822999,2.21823022,87.128,87.104,2.19454805]
[1770538824600,5.58428712,87.13,87.111,2.19454805]
[1770538825101,5.58428712,87.13,87.121,2.19454805]
[1770538825697,2.21823022,87.144,87.121,2.19454805]
[1770538825898,18.69171701,87.147,87.104,61.2]
[1770538825899,2.21823022,87.141,87.113,2.19454805]
[1770538826891,2.21823022,87.14,87.111,2.19454805]
[1770538827099,2.21823022,87.137,87.111,2.19454805]
[1770538827683,2.21823022,87.137,87.11,10.86604358]
[1770538827983,2.21823022,87.137,87.112,13.67402274]
[1770538828301,2.21823022,87.136,87.113,2.19454805]
[1770538829285,2.21823022,87.128,87.092,11.48199617]
[1770538829486,2.21823022,87.128,87.097,11.48143673]
[1770538829993,11.47644459,87.135,87.093,2.19454805]
[1770538829994,2.21823022,87.118,87.093,2.19454805]
[1770538830182,5.58428712,87.118,87.102,11.4806872]
[1770538830381,5.58428712,87.118,87.101,2.19454805]
[1770538830588,5.58428712,87.118,87.097,11.48134551]
[1770538830913,5.58428712,87.118,87.095,2.19454805]
[1770538831089,5.58428712,87.117,87.095,2.19454805]
[1770538831294,7.80251734,87.117,87.095,2.19454805]
[1770538832411,2.21823022,87.117,87.095,2.19454805]
[1770538833415,2.21823022,87.117,87.096,74.87613159]
[1770538835414,2.21823022,87.117,87.098,11.48131989]
[1770538839309,5.58428712,87.122,87.111,2.35610764]
[1770538839513,5.58428712,87.122,87.112,2.35610764]
[1770538839717,2.35076575,87.133,87.112,2.35610764]
[1770538840026,0.72100001,87.134,87.12,4.05416119]
[1770538842117,0.72100001,87.134,87.122,2.35610764]
[1770538842615,0.72100001,87.134,87.116,2.35610764]
[1770538842823,5.58428712,87.133,87.11,4.05416119]
[1770538843414,5.58428712,87.133,87.102,61.2]
[1770538843622,5.58428712,87.133,87.1,4.05416119]
[1770538843623,5.58428712,87.121,87.1,4.05416119]
[1770538843808,5.58428712,87.121,87.099,11.48113363]
[1770538844621,5.58428712,87.12,87.1,4.05416119]
[1770538844826,5.58428712,87.12,87.101,1.06239644]
[1770538845631,2.35076575,87.118,87.091,11.48224271]
[1770538845830,5.58428712,87.113,87.092,1.06564554]
[1770538846832,5.58428712,87.113,87.093,11.48197903]
[1770538847025,5.58428712,87.113,87.094,1.07203222]
[1770538847829,7.93505287,87.112,87.095,11.48171536]
[1770538848036,5.58428712,87.108,87.088,1.07203222]
[1770538848413,5.58428712,87.108,87.091,1.0723979]
[1770538849108,5.58428712,87.114,87.091,1.0723979]
[1770538849613,5.58428712,87.114,87.093,1.07275939]
[1770538850818,5.58428712,87.114,87.095,11.48171536]
[1770538853115,5.58428712,87.113,87.101,1.07416428]
[1770538853319,5.58428712,87.113,87.1,4.05416119]
[1770538853320,7.22856287,87.13,87.103,1.07416428]
[1770538853524,7.22856287,87.13,87.111,1.07416428]
[1770538854329,2.35076575,87.148,87.121,1.07450547]
[1770538855433,2.35076575,87.146,87.123,1.07484275]
[1770538855638,2.35076575,87.157,87.131,1.07484275]
[1770538855944,2.35076575,87.149,87.122,11.47815706]
[1770538856316,2.35076575,87.149,87.123,1.07517615]
[1770538856518,5.58428712,87.148,87.123,1.07517615]
[1770538856716,7.93505287,87.146,87.123,1.07517615]
[1770538857140,5.58428712,87.146,87.131,1.07550573]
[1770538857542,5.58428712,87.151,87.132,11.47683973]
[1770538857938,5.58428712,87.151,87.133,1.07550573]
[1770538858320,5.58428712,87.151,87.141,1.07583151]
[1770538858526,5.58428712,87.164,87.141,1.07583151]
[1770538858843,5.58428712,87.164,87.151,1.07583151]
[1770538859255,2.35076575,87.172,87.15,4.05416119]
[1770538859256,2.64540514,87.21,87.15,4.05416119]
[1770538859548,2.44540514,87.197,87.16,4.05416119]
[1770538859723,2.44540514,87.189,87.155,11.473758]
[1770538860064,2.44540514,87.189,87.153,11.47394906]
[1770538862552,2.44540514,87.189,87.16,4.05416119]
[1770538862852,0.2,87.21,87.17,4.05416119]
[1770538862853,2.44540514,87.205,87.17,4.05416119]
[1770538863059,2.44540514,87.189,87.153,11.47394906]
[1770538863244,2.44540514,87.189,87.16,4.05416119]
[1770538864448,2.44540514,87.189,87.161,11.47302119]
[1770538865031,2.44540514,87.187,87.15,4.05416119]
[1770538865255,2.44540514,87.208,87.161,11.47302119]
[1770538865459,2.44540514,87.199,87.162,61.2]
[1770538866463,2.44540514,87.199,87.163,11.47275793]
[1770538867043,2.44540514,87.209,87.18,4.04785223]
[1770538867548,0.2,87.21,87.163,40.15465277]
[1770538867549,0.2,87.21,87.2,4.04785223]
[1770538867754,0.2,87.21,87.163,40.15465277]
[1770538867755,2.64540514,87.21,87.19,4.04785223]
[1770538867948,2.64540514,87.21,87.18,4.04785223]
[1770538868347,2.64540514,87.21,87.19,4.04785223]
[1770538868548,2.64540514,87.21,87.191,11.46907364]
[1770538869343,0.2,87.21,87.191,11.46907364]
[1770538869970,4.24785223,87.23,87.2,4.04785223]
[1770538869971,2.44540514,87.223,87.2,4.04785223]
[1770538870537,2.44540514,87.223,87.201,11.46775839]
[1770538871139,0.2,87.23,87.21,4.04785223]
[1770538871349,2.64540514,87.25,87.22,4.04785223]
[1770538871548,2.64540514,87.25,87.23,4.04785223]
[1770538871852,2.64540514,87.25,87.22,4.04785223]
[1770538872437,2.64540514,87.25,87.201,40.13715438]
[1770538872438,2.44540514,87.249,87.21,4.04785223]
[1770538872760,2.44540514,87.249,87.22,4.04785223]
[1770538872937,4.04785223,87.28,87.2,4.04785223]
[1770538872938,2.44540514,87.265,87.23,4.04785223]
[1770538873140,4.04785223,87.28,87.24,4.04785223]
[1770538873342,2.44540514,87.28,87.25,4.04785223]
[1770538873973,2.44540514,87.279,87.221,40.12795083]
[1770538874163,4.04785223,87.25,87.221,40.12795083]
[1770538874361,2.44540514,87.256,87.221,40.12795083]
[1770538874548,4.50813356,87.255,87.221,40.12795083]
[1770538874747,6.9535387,87.253,87.221,40.12795083]
[1770538874967,6.9535387,87.253,87.204,5.13032502]
[1770538875170,6.9535387,87.253,87.22,4.04785223]
[1770538876084,4.50813356,87.259,87.22,4.04785223]
[1770538876246,2.44540514,87.285,87.25,4.04785223]
[1770538876557,0.2,87.29,87.26,4.04785223]
[1770538876754,0.2,87.29,87.27,4.04785223]
[1770538877152,1e-08,87.29,87.271,11.45856011]
[1770538877354,1e-08,87.29,87.28,4.04785223]
[1770538877548,4.50813356,87.298,87.28,4.04785223]
[1770538877950,4.50813356,87.298,87.271,40.1049604]
[1770538878471,6.9535387,87.292,87.271,11.45856011]
[1770538878673,2.64540514,87.33,87.28,8.09570446]
[1770538878965,6.69325737,87.33,87.3,4.04785223]
[1770538879152,6.69325737,87.33,87.28,4.04785223]
[1770538879153,0.2,87.33,87.31,4.04785223]
[1770538880152,4.50813356,87.336,87.32,4.04785223]
[1770538880356,0.2,87.34,87.31,4.04785223]
[1770538880357,4.50813356,87.335,87.31,4.04785223]
[1770538881068,4.50813356,87.331,87.311,11.45331057]
[1770538881265,2.44540514,87.324,87.29,4.04785223]
[1770538881564,2.44540514,87.324,87.296,28.63817873]
[1770538881768,2.44540514,87.339,87.311,11.45331057]
[1770538882368,4.50813356,87.338,87.311,11.45331057]
[1770538882556,0.2,87.34,87.321,2.34078368]
[1770538882754,0.2,87.34,87.311,40.08658701]
[1770538882958,0.2,87.34,87.311,42.42737069]
[1770538883167,11.01060595,87.34,87.311,42.42737069]
[1770538883471,4.50813356,87.339,87.311,13.79409425]
[1770538883970,4.50813356,87.329,87.306,11.45392425]
[1770538884164,4.50813356,87.329,87.293,2.34078368]
[1770538884562,2.22869338,87.328,87.304,11.45419714]
[1770538884971,2.22869338,87.318,87.293,11.45566019]
[1770538885472,2.22869338,87.318,87.291,2.34078368]
[1770538886172,4.50813356,87.318,87.291,2.34078368]
[1770538886355,2.22869338,87.334,87.301,2.34078368]
[1770538886751,10.81060595,87.32,87.293,2.34078368]
[1770538886962,2.22869338,87.319,87.293,2.34078368]
[1770538887163,2.22869338,87.318,87.293,2.34078368]
[1770538887359,2.22869338,87.318,87.294,11.45554104]
[1770538887574,2.22869338,87.318,87.3,10.81060595]
[1770538887762,4.50813356,87.319,87.3,10.81060595]
[1770538887956,4.50813356,87.319,87.295,2.34078368]
[1770538888162,4.50813356,87.318,87.295,2.34078368]
[1770538889175,4.50813356,87.317,87.295,2.34078368]
[1770538890166,6.73682694,87.315,87.285,2.34078368]
[1770538890368,4.50813356,87.314,87.291,11.4558541]
[1770538890676,4.50813356,87.314,87.287,2.34078368]
[1770538890865,6.73682694,87.314,87.287,2.34078368]
[1770538891382,4.50813356,87.313,87.287,2.34078368]
[1770538891788,2.22869338,87.331,87.301,2.34078368]
[1770538892686,4.50813356,87.329,87.301,2.34078368]
[1770538893385,2.22869338,87.328,87.293,2.34078368]
[1770538894487,4.50813356,87.328,87.301,2.34078368]
[1770538895587,2.22869338,87.333,87.301,2.34078368]
[1770538896087,4.50813356,87.329,87.301,2.34078368]
[1770538896584,2.27191701,87.331,87.303,2.2432232]
[1770538896786,4.50813356,87.332,87.311,2.2432232]
[1770538897086,4.50813356,87.332,87.302,11.4544913]
[1770538897087,2.27191701,87.328,87.302,11.4544913]
[1770538897788,11.45062732,87.332,87.278,2.2432232]
[1770538897789,2.27191701,87.308,87.278,2.2432232]
[1770538898485,2.27191701,87.308,87.288,11.45621573]
[1770538899083,1.71812358,87.308,87.288,11.45621573]
[1770538899292,4.23428728,87.308,87.29,2.2432232]
[1770538899487,4.23428728,87.308,87.291,2.2432232]
[1770538899992,10.81060595,87.32,87.291,2.2432232]
[1770538900373,10.81060595,87.31,87.275,28.64506274]
[1770538900576,10.81060595,87.3,87.274,2.2432232]
[1770538900984,11.4523924,87.318,87.27,11.4586743]
[1770538901185,2.27191701,87.289,87.265,11.45934556]
[1770538901578,2.27191701,87.289,87.26,11.45991229]
[1770538901787,10.81060595,87.28,87.26,11.45991229]
[1770538902085,13.08252296,87.28,87.26,11.45991229]
[1770538902291,2.27191701,87.279,87.256,2.2432232]
[1770538902487,2.27191701,87.292,87.258,2.2432232]
[1770538902693,2.27191701,87.289,87.261,2.2432232]
[1770538902889,10.81060595,87.3,87.275,2.2432232]
[1770538903475,2.27191701,87.319,87.291,2.2432232]
[1770538903779,2.99291702,87.337,87.291,2.2432232]
[1770538904092,4.03759726,87.33,87.301,2.2432232]
[1770538904297,2.27191701,87.335,87.301,2.2432232]
[1770538904674,2.27191701,87.329,87.294,2.2432232]
[1770538904983,2.27191701,87.319,87.283,2.2432232]
[1770538905183,2.27191701,87.319,87.291,2.2432232]
[1770538907074,2.27191701,87.319,87.293,2.2432232]
[1770538907280,2.27191701,87.309,87.283,2.2432232]
[1770538907486,2.27191701,87.309,87.287,11.45636909]
[1770538907679,2.27191701,87.309,87.283,2.2432232]
[1770538908700,2.27191701,87.309,87.291,11.45591177]
[1770538908901,2.27191701,87.317,87.291,11.45591177]
[1770538909396,0.88190846,87.317,87.285,2.2432232]
[1770538910678,0.88190846,87.317,87.286,11.45659097]
[1770538911403,0.88190846,87.317,87.287,2.2432232]
[1770538912813,2.27191701,87.309,87.288,11.45632847]
[1770538914903,2.27191701,87.336,87.301,2.2432232]
[1770538915286,0.72100001,87.337,87.311,2.2432232]
[1770538915601,0.2,87.34,87.311,2.2432232]
[1770538915980,2.27191701,87.337,87.303,2.2432232]
[1770538916606,2.27191701,87.337,87.311,2.2432232]
[1770538916792,2.27191701,87.337,87.313,2.2432232]
[1770538916993,0.2,87.35,87.331,2.2432232]
[1770538917703,4.23428728,87.349,87.323,2.2432232]
[1770538918302,2.27191701,87.348,87.312,11.4531794]
[1770538918600,2.27191701,87.348,87.275,1.14580349]
[1770538918601,2.27191701,87.328,87.309,11.45351578]
[1770538918990,10.81049127,87.33,87.297,2.2432232]
[1770538918991,4.23428728,87.319,87.303,11.45427228]
[1770538919687,4.23428728,87.319,87.297,13.69835043]
[1770538919888,4.23428728,87.309,87.292,11.45572931]
[1770538920395,4.23428728,87.309,87.297,11.4551409]
[1770538920703,4.23428728,87.309,87.301,11.45460324]
[1770538920897,2.27191701,87.312,87.289,2.2432232]
[1770538921086,2.27191701,87.312,87.29,11.45606598]
[1770538921282,4.23428728,87.319,87.291,2.2432232]
[1770538921491,2.27191701,87.34,87.311,2.2432232]
[1770538921905,2.27191701,87.339,87.311,2.2432232]
[1770538922197,2.27191701,87.338,87.311,2.2432232]
[1770538922588,4.23428728,87.339,87.311,2.2432232]
[1770538922823,0.2,87.36,87.331,2.2432232]
[1770538922982,0.2,87.36,87.332,11.45055649]
[1770538923186,0.2,87.36,87.333,2.2432232]
[1770538923485,0.2,87.36,87.341,2.2432232]
[1770538924393,2.27191701,87.372,87.341,2.2432232]